fUSD/lending_fUSD_20240519
["ID","MTS","AMOUNT","RATE_DAILY","PERIOD"]
[327475364,1716103842599,-1250.13,0.00027715,2]
[327475365,1716103842608,-12651.55997179,0.00027716,2]
[327475366,1716103842617,-10934.65564137,0.00027716,2]
[327475367,1716103842627,-5263.28301521,0.00027716,2]
[327475368,1716103842636,-1999.69862257,0.00027716,2]
[327475369,1716103842649,-206.07247994,0.00027716,2]
[327475370,1716103842659,-1795.46208835,0.00027716,2]
[327475371,1716103842668,-189.88657051,0.00027716,2]
[327475372,1716103842677,-87420.40963499,0.00027716,2]
[327475373,1716103842687,-500.0,0.00027716,2]
[327475374,1716103842695,-151.0,0.00027716,7]
[327475375,1716103842704,-200.616696,0.00027716,7]
[327475377,1716103842714,-151.0,0.00027716,7]
[327475379,1716103842723,-151.0,0.00027716,7]
[327475380,1716103842732,-151.0,0.00027716,7]
[327475381,1716103842740,-151.0,0.00027716,7]
[327475382,1716103842749,-172.160208,0.00027716,7]
[327475383,1716103842758,-163.772033,0.00027716,7]
[327475384,1716103842767,-155.232448,0.00027716,7]
[327475385,1716103842776,-151.0,0.00027716,7]
[327475386,1716103842785,-151.0,0.00027716,7]
[327475387,1716103842794,-151.0,0.00027716,7]
[327475388,1716103842803,-151.0,0.00027716,7]
[327475389,1716103842812,-708.362559,0.00027716,7]
[327475390,1716103842822,-401.48561084,0.00027717,2]
[327475391,1716103842831,-500.0,0.00027717,2]
[327475392,1716103842840,-529.89415678,0.00027717,2]
[327475393,1716103842850,-541.23194647,0.00027717,2]
[327475394,1716103842859,-533.81665393,0.00027717,2]
[327475395,1716103842868,-583.23881307,0.00027717,2]
[327475396,1716103842878,-500.0,0.00027717,2]
[327475397,1716103842887,-500.0,0.00027717,2]
[327475398,1716103842896,-500.0,0.00027717,2]
[327475399,1716103842905,-500.0,0.00027717,2]
[327475400,1716103842914,-500.0,0.00027717,2]
[327475401,1716103842923,-500.0,0.00027717,2]
[327475402,1716103842932,-500.0,0.00027717,2]
[327475403,1716103842941,-757.58,0.00027717,2]
[327475404,1716103842951,-500.0,0.00027717,2]
[327475405,1716103842960,-761.43,0.00027717,2]
[327475406,1716103842969,-432.15432391,0.00027717,2]
[327475407,1716103842979,-446.3449433,0.00027717,2]
[327475408,1716103842988,-500.0,0.00027717,2]
[327475409,1716103842998,-582.93557049,0.00027717,2]
[327475410,1716103843007,-500.0,0.00027717,2]
[327475411,1716103843016,-500.0,0.00027717,2]
[327475412,1716103843025,-514.12186978,0.00027717,2]
[327475413,1716103843035,-827.0,0.00027717,2]
[327475414,1716103843044,-511.10546049,0.00027717,2]
[327475415,1716103843054,-528.16474817,0.00027717,2]
[327475416,1716103843063,-530.44286522,0.00027717,2]
[327475417,1716103843072,-500.0,0.00027717,2]
[327475418,1716103843081,-514.30325888,0.00027717,2]
[327475419,1716103843090,-500.0,0.00027717,2]
[327475420,1716103843101,-500.0,0.00027717,2]
[327475421,1716103843110,-491.62175673,0.00027717,2]
[327475422,1716103843119,-518.88454247,0.00027717,2]
[327475423,1716103843128,-500.0,0.00027717,2]
[327475424,1716103843137,-606.4,0.00027717,2]
[327475425,1716103843146,-612.83395658,0.00027717,2]
[327475426,1716103843156,-500.0,0.00027717,2]
[327475427,1716103843165,-500.0,0.00027717,2]
[327475428,1716103843174,-505.0,0.00027717,2]
[327475429,1716103843184,-527.07509908,0.00027717,2]
[327475430,1716103843193,-500.0,0.00027717,2]
[327475431,1716103843202,-261.18788992,0.00027717,2]
[327475432,1716103843211,-500.0,0.00027717,2]
[327475433,1716103843221,-514.71622382,0.00027717,2]
[327475434,1716103843230,-500.0,0.00027717,2]
[327475435,1716103843239,-860.73,0.00027717,2]
[327475436,1716103843248,-500.0,0.00027717,2]
[327475437,1716103843257,-4748.12,0.00027717,2]
[327475438,1716103843266,-5262.64,0.00027717,2]
[327475439,1716103843275,-500.0,0.00027717,2]
[327475440,1716103843284,-597.53,0.00027717,2]
[327475441,1716103843294,-919.66,0.00027717,2]
[327475442,1716103843303,-835.47,0.00027717,2]
[327475443,1716103843312,-500.0,0.00027717,2]
[327475444,1716103843321,-500.0,0.00027717,2]
[327475445,1716103843330,-500.0,0.00027717,2]
[327475446,1716103843339,-526.08,0.00027717,2]
[327475447,1716103843349,-153.75478372,0.00027717,2]
[327475448,1716103843358,-773.2,0.00027717,2]
[327475449,1716103843368,-500.0,0.00027717,2]
[327475450,1716103843377,-1869.08,0.00027717,2]
[327475451,1716103843387,-500.0,0.00027717,2]
[327475452,1716103843395,-1291.35,0.00027717,2]
[327475453,1716103843405,-545.97,0.00027717,2]
[327475454,1716103843414,-500.0,0.00027717,2]
[327475455,1716103843423,-500.0,0.00027717,2]
[327475456,1716103843432,-979.23,0.00027717,2]
[327475457,1716103843442,-1187.62,0.00027717,2]
[327475458,1716103843451,-870.02,0.00027717,2]
[327475459,1716103843460,-522.24,0.00027717,2]
[327475460,1716103843469,-500.0,0.00027717,2]
[327475461,1716103843478,-500.0,0.00027717,2]
[327475462,1716103843487,-1038.11,0.00027717,2]
[327475463,1716103843497,-500.0,0.00027717,2]
[327475464,1716103843506,-2460.91,0.00027717,2]
[327475465,1716103843515,-509.69952329,0.00027717,2]
[327475466,1716103843525,-500.0,0.00027717,2]
[327475467,1716103843534,-596.30557283,0.00027717,2]
[327475468,1716103843543,-686.48,0.00027717,2]
[327475469,1716103843552,-2000.0,0.00027718,2]
[327475470,1716103843562,-200.0,0.00027718,2]
[327475471,1716103843571,-500.0,0.00027718,2]
[327475472,1716103843580,-503.65235932,0.00027718,2]
[327475473,1716103843589,-500.0,0.00027718,2]
[327475474,1716103843598,-505.65025074,0.00027718,2]
[327475475,1716103843607,-500.0,0.00027718,2]
[327475476,1716103843616,-514.42340491,0.00027718,2]
[327475477,1716103843625,-500.0,0.00027718,2]
[327475478,1716103843634,-151.0,0.00027718,7]
[327475479,1716103843644,-151.0,0.00027718,7]
[327475480,1716103843653,-151.0,0.00027718,7]
[327475481,1716103843662,-155.782592,0.00027718,7]
[327475482,1716103843671,-151.0,0.00027718,7]
[327475483,1716103843681,-679.51814,0.00027718,2]
[327475484,1716103843690,-332.75841993,0.00027719,2]
[327475485,1716103843699,-19626.96507151,0.00027719,2]
[327475486,1716103843708,-151.0,0.00027719,7]
[327475487,1716103843717,-151.0,0.00027719,7]
[327475488,1716103843727,-200.0,0.00027729,2]
[327475489,1716103843736,-1000.0,0.00027729,15]
[327475490,1716103843745,-500.0,0.00027729,2]
[327475491,1716103843754,-4195.3022289,0.0002773,2]
[327475492,1716103843763,-246.704116,0.00027733,7]
[327475493,1716103843774,-246.704116,0.00027733,7]
[327475494,1716103843783,-191.958285,0.00027733,7]
[327475495,1716103843793,-151.0,0.00027733,7]
[327475496,1716103843802,-151.0,0.00027733,7]
[327475497,1716103843810,-151.0,0.00027733,7]
[327475498,1716103843819,-10587.8821738,0.00027733,2]
[327475499,1716103843829,-708.362559,0.00027733,7]
[327475500,1716103843839,-759.80564101,0.00027737,2]
[327475501,1716103843848,-157.051915,0.00027738,4]
[327475502,1716103843858,-155.92720636,0.00027738,2]
[327475503,1716103843867,-52268.0878021,0.00027747,2]
[327475504,1716103843876,-3638.0727788,0.00027747,2]
[327475505,1716103843885,-157.051914,0.00027748,4]
[327475506,1716103843895,-2676.82515355,0.0002777,2]
[327475507,1716103843904,-4195.3022289,0.00027773,2]
[327475508,1716103843913,-161.17106516,0.0002778,2]
[327475509,1716103843922,-215.1289669,0.0002778,2]
[327475510,1716103843931,-654.46870458,0.0002778,5]
[327475511,1716103843941,-2225.45019819,0.0002778,2]
[327475512,1716103843950,-181.87914728,0.0002778,2]
[327475513,1716103843960,-158.43504908,0.00027783,2]
[327475514,1716103843970,-157.051915,0.00027798,8]
[327475515,1716103843979,-2227.0,0.000278,2]
[327475516,1716103843989,-4501.41663865,0.000278,7]
[327475517,1716103843998,-4195.3022289,0.00027815,2]
[327475518,1716103844008,-500.0,0.00027832,2]
[327475519,1716103844019,-500.0,0.00027832,2]
[327475520,1716103844028,-500.0,0.00027832,2]
[327475521,1716103844037,-500.0,0.00027832,2]
[327475522,1716103844046,-500.0,0.00027832,2]
[327475523,1716103844056,-1081.17,0.00027832,2]
[327475524,1716103844067,-500.0,0.00027832,2]
[327475525,1716103844077,-510.45426668,0.00027832,2]
[327475526,1716103844086,-500.0,0.00027832,2]
[327475527,1716103844095,-500.0,0.00027832,2]
[327475528,1716103844105,-189.89323998,0.00027832,2]
[327475529,1716103844114,-500.0,0.00027832,2]
[327475530,1716103844123,-335.65256482,0.00027832,2]
[327475531,1716103844132,-500.0,0.00027832,2]
[327475532,1716103844141,-500.0,0.00027832,2]
[327475533,1716103844152,-519.76611579,0.00027832,2]
[327475534,1716103844163,-312.4228781,0.00027832,2]
[327475535,1716103844173,-500.0,0.00027832,2]
[327475536,1716103844182,-500.0,0.00027832,2]
[327475537,1716103844191,-500.0,0.00027832,2]
[327475538,1716103844201,-500.0,0.00027832,2]
[327475539,1716103844210,-500.0,0.00027832,2]
[327475540,1716103844219,-500.0,0.00027832,2]
[327475541,1716103844228,-597.0,0.00027832,2]
[327475542,1716103844241,-500.0,0.00027832,2]
[327475543,1716103844252,-500.0,0.00027832,2]
[327475544,1716103844261,-151.0,0.00027832,7]
[327475545,1716103844271,-151.0,0.00027832,7]
[327475546,1716103844280,-157.051915,0.00027838,4]
[327475547,1716103844289,-497.24550001,0.0002784,2]
[327475548,1716103844299,-215.12896689,0.0002784,2]
[327475549,1716103844308,-654.46870458,0.0002784,5]
[327475550,1716103844317,-2225.45019819,0.0002784,2]
[327475551,1716103844327,-786.0,0.0002784,5]
[327475552,1716103844337,-157.051914,0.00027848,4]
[327475553,1716103844346,-166.72,0.00027851,2]
[327475554,1716103844355,-162.87343757,0.00027857,4]
[327475555,1716103844365,-5800.0,0.00027858,2]
[327475556,1716103844374,-4195.3022289,0.00027858,2]
[327475557,1716103844383,-151.0,0.00027858,7]
[327475558,1716103844392,-708.362559,0.00027858,7]
[327475559,1716103844401,-246.704116,0.00027861,7]
[327475560,1716103844410,-246.704116,0.00027861,7]
[327475561,1716103844419,-151.0,0.00027861,7]
[327475562,1716103844429,-151.0,0.00027861,7]
[327475563,1716103844438,-151.0,0.00027861,7]
[327475564,1716103844450,-151.0,0.00027861,7]
[327475565,1716103844461,-151.0,0.00027861,7]
[327475566,1716103844471,-10076.9228231,0.00027861,2]
[327475567,1716103844482,-9565.9634723,0.00027861,2]
[327475568,1716103844491,-49745.6883485,0.00027861,2]
[327475569,1716103844500,-47223.288895,0.00027861,2]
[327475570,1716103844510,-3462.5034558,0.00027861,2]
[327475571,1716103844520,-3286.9341328,0.00027861,2]
[327475572,1716103844529,-151.0,0.00027861,7]
[327475573,1716103844541,-151.0,0.00027861,7]
[327475574,1716103844551,-5800.0,0.00027866,2]
[327475575,1716103844561,-30000.0,0.0002787,2]
[327475576,1716103844572,-303.42093187,0.0002787,2]
[327475577,1716103844581,-38967.54216632,0.0002787,2]
[327475582,1716103844765,-708.362559,0.00027861,7]
[327475583,1716103844775,-384.44807828,0.0002787,2]
[327475584,1716103844787,-1348.37030117,0.0002787,2]
[327475585,1716103844808,-404.24487,0.0002787,2]
[327475586,1716103844819,-1791.01413725,0.0002787,2]
[327475587,1716103844831,-8014.98935969,0.0002787,2]
[327475588,1716103844843,-1308.18429658,0.0002787,2]
[327475613,1716103845693,-2701.10386171,0.00027618,2]
[327475618,1716103845716,-7298.89613829,0.00027618,2]
[327475620,1716103845726,-500.0,0.00027712,2]
[327475622,1716103845735,-708.362559,0.00027716,7]
[327475624,1716103845745,-708.362559,0.00027733,7]
[327475626,1716103845754,-708.362559,0.00027858,7]
[327475629,1716103845764,-708.362559,0.00027861,7]
[327475631,1716103845773,-10388.92711678,0.0002787,2]
[327475634,1716103845790,-185537.10000001,0.0002787,2]
[327475687,1716103846286,-151.0,0.00027716,7]
[327475689,1716103846296,-730.31215552,0.0002787,2]
[327475692,1716103846308,-3230.612195,0.0002787,2]
[327477354,1716103863456,175.99,0.00026841,120]
[327480005,1716103922636,176.56446522,0.00017259,2]
[327480014,1716103995885,5663.42874218,0.00017259,2]
[327480015,1716103995911,85964.72489404,0.00017259,2]
[327480020,1716104024345,124690.50148045,0.00013,2]
[327480024,1716104035722,300.0,9e-05,2]
[327480027,1716104046797,637.29868216,0.000118,2]
[327480030,1716104071867,17586.60086623,0.00011667,2]
[327480033,1716104098638,10665.24985886,0.00011667,2]
[327480034,1716104098663,47996.49843231,0.00011667,2]
[327480046,1716104251949,1788.03912655,0.00017259,2]
[327480535,1716104825071,316.99062076,0.0003,90]
[327480544,1716104916179,178.61,0.00025366,120]
[327480570,1716105031817,-158.40751694,0.00018,2]
[327480571,1716105031826,-1226.0,0.00020745,2]
[327480573,1716105031836,-2319.241,0.00020745,2]
[327480574,1716105031850,-299.85,0.00020745,2]
[327480575,1716105031860,-150.0,0.00020745,2]
[327480576,1716105031872,-183.506,0.00020745,2]
[327480577,1716105031881,-1060.0,0.00020745,2]
[327480578,1716105031891,-7727.02896467,0.00023,2]
[327480579,1716105031902,-530.14499983,0.00023,2]
[327480580,1716105031980,-400.0,0.00023,2]
[327480581,1716105031993,-2347.49162303,0.00023,2]
[327480598,1716105037960,-900.0,0.00023,2]
[327480599,1716105038196,-1663.66909841,0.00023,2]
[327480600,1716105038208,-857.83662277,0.00023,2]
[327480601,1716105038219,-367.18970664,0.00023,2]
[327480716,1716105040416,-3936.78164409,0.00023,2]
[327480717,1716105040429,-89843.15001506,0.00023,2]
[327480718,1716105040438,-162.14134822,0.00023645,2]
[327480719,1716105040448,-210276.55470217,0.00023744,2]
[327480720,1716105040458,-1059.0,0.00023745,2]
[327480721,1716105040468,-150.0,0.00023863,2]
[327480722,1716105040477,-1217.73,0.00023878,2]
[327480723,1716105040487,-500.0,0.00024382,2]
[327480724,1716105040497,-162.33746669,0.00024889,2]
[327480725,1716105040506,-162.33746669,0.00024889,2]
[327480726,1716105040516,-5000.0,0.00025,7]
[327480727,1716105040525,-162.33746669,0.00025347,2]
[327480728,1716105040534,-284.11,0.00025435,2]
[327480729,1716105040544,-250.0,0.00025448,2]
[327480730,1716105040554,-500.0,0.00025478,2]
[327480731,1716105040565,-296.31,0.0002563,2]
[327480732,1716105040575,-162.14134821,0.00025713,2]
[327480733,1716105040584,-700.0,0.00025752,2]
[327480734,1716105040594,-500.0,0.00025752,2]
[327480735,1716105040604,-500.0,0.00025752,2]
[327480736,1716105040614,-47382.929,0.00026,3]
[327480737,1716105040625,-330.53096426,0.00026,3]
[327480738,1716105040634,-624.23699094,0.00026,2]
[327480739,1716105040644,-1217.73,0.00026142,2]
[327480740,1716105040653,-162.33746669,0.00026198,2]
[327480741,1716105040663,-700.0,0.000263,2]
[327480742,1716105040673,-410.62,0.00026431,2]
[327480743,1716105040682,-582.3990908,0.00026574,2]
[327480744,1716105040692,-3272.01,0.00026591,2]
[327480745,1716105040701,-29272.1,0.00026591,2]
[327480746,1716105040710,-351.31457942,0.00026748,2]
[327480747,1716105040720,-700.0,0.00026848,2]
[327480748,1716105040729,-500.0,0.00026848,2]
[327480749,1716105040739,-500.0,0.00026848,2]
[327480750,1716105040749,-20549.43438633,0.00027,2]
[327480751,1716105040759,-155.0,0.00027,2]
[327480752,1716105040768,-157.051916,0.00027018,8]
[327480753,1716105040777,-162.33746669,0.00027049,2]
[327480754,1716105040787,-351.31457934,0.00027091,2]
[327480755,1716105040796,-157.051916,0.00027118,8]
[327480756,1716105040806,-157.051916,0.00027128,4]
[327480757,1716105040815,-157.051916,0.00027148,10]
[327480758,1716105040824,-157.051916,0.00027178,8]
[327480759,1716105040834,-200.0,0.000272,9]
[327480760,1716105040843,-157.051916,0.00027208,8]
[327480761,1716105040852,-157.051916,0.00027218,10]
[327480762,1716105040861,-157.051916,0.00027228,4]
[327480763,1716105040871,-157.051916,0.00027238,4]
[327480764,1716105040880,-157.051916,0.00027248,10]
[327480765,1716105040890,-157.051916,0.00027278,8]
[327480766,1716105040903,-500.0,0.000273,9]
[327480767,1716105040912,-150.02027653,0.000273,2]
[327480768,1716105040922,-150.02027652,0.000273,2]
[327480769,1716105040931,-150.02027652,0.000273,2]
[327480770,1716105040941,-150.02027652,0.000273,2]
[327480771,1716105040950,-150.02027652,0.000273,2]
[327480772,1716105040960,-150.02027652,0.000273,2]
[327480773,1716105040969,-150.02027652,0.000273,2]
[327480774,1716105040978,-150.02027652,0.000273,2]
[327480775,1716105040990,-150.02027652,0.000273,2]
[327480776,1716105040999,-157.051916,0.00027308,8]
[327480777,1716105041010,-157.051916,0.00027318,10]
[327480778,1716105041019,-157.051916,0.00027328,8]
[327480779,1716105041029,-157.051916,0.00027338,4]
[327480780,1716105041039,-157.051916,0.00027348,10]
[327480781,1716105041048,-157.051916,0.00027378,8]
[327480782,1716105041057,-700.0,0.00027396,2]
[327480783,1716105041067,-500.0,0.00027397,2]
[327480784,1716105041076,-500.0,0.00027397,2]
[327480785,1716105041085,-150.848698,0.00027397,2]
[327480786,1716105041095,-500.0,0.00027397,2]
[327480787,1716105041104,-500.0,0.00027397,2]
[327480788,1716105041113,-500.0,0.00027397,2]
[327480789,1716105041122,-500.0,0.00027397,2]
[327480790,1716105041132,-500.0,0.00027397,2]
[327480791,1716105041143,-150.0,0.00027397,2]
[327480792,1716105041152,-500.0,0.00027397,2]
[327480793,1716105041183,-500.0,0.00027397,2]
[327480794,1716105041198,-500.0,0.00027397,2]
[327480795,1716105041212,-1334.65,0.00027397,2]
[327480796,1716105041235,-513.69236377,0.00027397,2]
[327480797,1716105041249,-500.0,0.00027397,2]
[327480798,1716105041261,-500.0,0.00027397,2]
[327480799,1716105041272,-500.0,0.00027397,2]
[327480800,1716105041283,-640.78826503,0.00027397,2]
[327480801,1716105041296,-500.0,0.00027397,2]
[327480802,1716105041308,-500.0,0.00027397,2]
[327480803,1716105041320,-500.0,0.00027397,2]
[327480804,1716105041331,-500.0,0.00027397,2]
[327480805,1716105041343,-503.1575086,0.00027397,2]
[327480806,1716105041361,-500.0,0.00027397,2]
[327480807,1716105041373,-500.0,0.00027397,2]
[327480808,1716105041385,-500.0,0.00027397,2]
[327480809,1716105041397,-500.0,0.00027397,2]
[327480810,1716105041412,-500.0,0.00027397,2]
[327480811,1716105041423,-500.0,0.00027397,2]
[327480812,1716105041436,-375.79908759,0.00027397,2]
[327480813,1716105041448,-993.41,0.00027397,2]
[327480814,1716105041461,-500.0,0.00027397,2]
[327480815,1716105041472,-500.0,0.00027397,2]
[327480816,1716105041485,-500.0,0.00027397,2]
[327480817,1716105041497,-500.0,0.00027397,2]
[327480818,1716105041511,-772.28,0.00027397,2]
[327480819,1716105041528,-364.93333223,0.00027397,2]
[327480820,1716105041547,-500.0,0.00027397,2]
[327480821,1716105041565,-938.35,0.00027397,2]
[327480822,1716105041576,-716.64,0.00027397,2]
[327480823,1716105041588,-3181.88,0.00027397,2]
[327480824,1716105041599,-626.03,0.00027397,2]
[327480825,1716105041609,-500.0,0.00027397,2]
[327480826,1716105041620,-641.49,0.00027397,2]
[327480827,1716105041630,-500.0,0.00027397,2]
[327480828,1716105041643,-500.0,0.00027397,2]
[327480829,1716105041655,-737.8,0.00027397,2]
[327480830,1716105041667,-1852.94,0.00027397,2]
[327480831,1716105041678,-500.0,0.00027397,2]
[327480832,1716105041690,-500.0,0.00027397,2]
[327480833,1716105041703,-500.0,0.00027397,2]
[327480834,1716105041716,-500.0,0.00027397,2]
[327480835,1716105041728,-755.04,0.00027397,2]
[327480836,1716105041741,-503.92,0.00027397,2]
[327480837,1716105041754,-500.0,0.00027397,2]
[327480838,1716105041766,-637.39,0.00027397,2]
[327480839,1716105041776,-599.08,0.00027397,2]
[327480840,1716105041787,-500.0,0.00027397,2]
[327480841,1716105041797,-594.16,0.00027397,2]
[327480842,1716105041807,-500.0,0.00027397,2]
[327480843,1716105041818,-500.0,0.00027397,2]
[327480844,1716105041829,-632.9,0.00027397,2]
[327480845,1716105041841,-500.0,0.00027397,2]
[327480846,1716105041853,-523.67,0.00027397,2]
[327480847,1716105041864,-500.0,0.00027397,2]
[327480848,1716105041876,-500.0,0.00027397,2]
[327480849,1716105041889,-500.0,0.00027397,2]
[327480850,1716105041905,-537.12,0.00027397,2]
[327480851,1716105041916,-500.0,0.00027397,2]
[327480854,1716105041927,-2190.3,0.00027397,2]
[327480856,1716105041938,-500.0,0.00027397,2]
[327480858,1716105041949,-500.0,0.00027397,2]
[327480860,1716105041962,-500.0,0.00027397,2]
[327480863,1716105041974,-500.0,0.00027397,2]
[327480865,1716105041986,-500.0,0.00027397,2]
[327480867,1716105041996,-500.0,0.00027397,2]
[327480869,1716105042007,-1008.43,0.00027397,2]
[327480871,1716105042018,-500.0,0.00027397,2]
[327480873,1716105042028,-750.61,0.00027397,2]
[327480875,1716105042038,-824.86,0.00027397,2]
[327480878,1716105042049,-547.66,0.00027397,2]
[327480880,1716105042060,-564.60283654,0.00027397,2]
[327480882,1716105042070,-500.0,0.00027397,2]
[327480884,1716105042081,-549.3104688,0.00027397,2]
[327480886,1716105042092,-555.45,0.00027397,2]
[327480888,1716105042102,-500.0,0.00027397,2]
[327480891,1716105042114,-500.0,0.00027397,2]
[327480893,1716105042125,-234.56118111,0.00027397,2]
[327480895,1716105042139,-1074.74,0.00027397,2]
[327480898,1716105042151,-500.0,0.00027397,2]
[327480900,1716105042164,-500.0,0.00027397,2]
[327480902,1716105042175,-991.07,0.00027397,2]
[327480904,1716105042186,-930.97,0.00027397,2]
[327480906,1716105042197,-500.0,0.00027397,2]
[327480909,1716105042208,-2140.78,0.00027397,2]
[327480911,1716105042219,-500.0,0.00027397,2]
[327480913,1716105042230,-500.0,0.00027397,2]
[327480915,1716105042241,-600.81,0.00027397,2]
[327480917,1716105042252,-3427.97,0.00027397,2]
[327480920,1716105042262,-500.0,0.00027397,2]
[327480922,1716105042273,-500.0,0.00027397,2]
[327480924,1716105042284,-500.0,0.00027397,2]
[327480926,1716105042295,-5043.36,0.00027397,2]
[327480928,1716105042305,-697.23,0.00027397,2]
[327480930,1716105042316,-500.0,0.00027397,2]
[327480932,1716105042327,-500.0,0.00027397,2]
[327480935,1716105042338,-1198.05,0.00027397,2]
[327480937,1716105042349,-1227.03,0.00027397,2]
[327480939,1716105042359,-500.0,0.00027397,2]
[327480941,1716105042370,-1015.4,0.00027397,2]
[327480943,1716105042381,-953.1,0.00027397,2]
[327480945,1716105042391,-500.0,0.00027397,2]
[327480948,1716105042402,-526.79,0.00027397,2]
[327480950,1716105042415,-500.0,0.00027397,2]
[327480952,1716105042425,-500.0,0.00027397,2]
[327480954,1716105042436,-881.34,0.00027397,2]
[327480956,1716105042447,-2535.83,0.00027397,2]
[327480958,1716105042458,-740.98,0.00027397,2]
[327480960,1716105042469,-500.0,0.00027397,2]
[327480963,1716105042480,-558.84,0.00027397,2]
[327480965,1716105042490,-500.0,0.00027397,2]
[327480967,1716105042501,-221.92809636,0.00027397,2]
[327480969,1716105042512,-800.66,0.00027397,2]
[327480971,1716105042523,-500.0,0.00027397,2]
[327480973,1716105042533,-2188.23,0.00027397,2]
[327480975,1716105042545,-500.0,0.00027397,2]
[327480978,1716105042556,-191.95480413,0.00027397,2]
[327480980,1716105042567,-500.0,0.00027397,2]
[327480982,1716105042578,-500.0,0.00027397,2]
[327480984,1716105042589,-11076.16,0.00027397,2]
[327480986,1716105042600,-500.0,0.00027397,2]
[327480989,1716105042611,-500.0,0.00027397,2]
[327480991,1716105042622,-500.0,0.00027397,2]
[327480993,1716105042633,-500.0,0.00027397,2]
[327480995,1716105042644,-500.0,0.00027397,2]
[327480997,1716105042654,-251.50287587,0.00027397,2]
[327480999,1716105042665,-500.0,0.00027397,2]
[327481001,1716105042675,-500.0,0.00027397,2]
[327481004,1716105042686,-500.0,0.00027397,2]
[327481006,1716105042696,-1195.83,0.00027397,2]
[327481008,1716105042707,-500.0,0.00027397,2]
[327481010,1716105042718,-1145.09,0.00027397,2]
[327481012,1716105042728,-1650.64,0.00027397,2]
[327481014,1716105042739,-500.0,0.00027397,2]
[327481016,1716105042750,-500.0,0.00027397,2]
[327481018,1716105042760,-503.59,0.00027397,2]
[327481021,1716105042771,-500.0,0.00027397,2]
[327481023,1716105042781,-2108.62,0.00027397,2]
[327481025,1716105042792,-500.0,0.00027397,2]
[327481028,1716105042803,-749.31,0.00027397,2]
[327481031,1716105042814,-50480.30946978,0.00027397,2]
[327481034,1716105042824,-500.0,0.00027397,2]
[327481038,1716105042835,-1791.2,0.00027397,2]
[327481041,1716105042846,-500.0,0.00027397,2]
[327481044,1716105042857,-500.0,0.00027397,2]
[327481046,1716105042869,-7786.85,0.00027397,2]
[327481048,1716105042879,-1224.27,0.00027397,2]
[327481050,1716105042890,-1190.86,0.00027397,2]
[327481052,1716105042904,-574.74228693,0.00027397,2]
[327481054,1716105042915,-553.55,0.00027397,2]
[327481056,1716105042926,-500.0,0.00027397,2]
[327481058,1716105042937,-500.0,0.00027397,2]
[327481062,1716105042948,-500.0,0.00027397,2]
[327481066,1716105042960,-500.0,0.00027397,2]
[327481068,1716105042970,-540.15,0.00027397,2]
[327481070,1716105042984,-1237.54,0.00027397,2]
[327481072,1716105042996,-500.0,0.00027397,2]
[327481074,1716105043006,-500.0,0.00027397,2]
[327481076,1716105043017,-700.0,0.000274,10]
[327481078,1716105043027,-166.73,0.000274,2]
[327481081,1716105043038,-157.051916,0.00027408,8]
[327481083,1716105043048,-157.051916,0.00027418,10]
[327481085,1716105043060,-157.051916,0.00027428,8]
[327481087,1716105043070,-351.31457934,0.00027434,2]